Workbook

Sheet Home (hidden)
B1: Percorso Foto
A3: 1)
A6: 2)
A22: 3)

Sheet Foglio1
A1: ART POLLINI | B1: Foto | C1: Articolo | D1: Q.tà | E1: Whs € | F1: Tot whs € | G1: RETAIL
A2: =CONCATENATE(LEFT(C2,6),MID(C2,11,3)) -> JC4000LA0 | C2: JC4000PP0FLA0000 | D2: 2 | E2: 84.53 | F2: =E2*D2 -> 169.06 | G2: =E2*2.4 -> 202.872
A3: =CONCATENATE(LEFT(C3,6),MID(C3,11,3)) -> JC4000LA0 | C3: JC4000PP0FLA0120 | D3: 12 | E3: 84.53 | F3: =E3*D3 -> 1014.36 | G3: =E3*2.4 -> 202.872
A4: JC4000LA0 | C4: JC4000PP0FLA0500 | D4: 34 | E4: 84.53 | F4: 2874.02 | G4: 202.872
A5: JC4000LA0 | C5: JC4000PP0FLA0651 | D5: 6 | E5: 84.53 | F5: 507.18 | G5: 202.872
A6: JC4000LA0 | C6: JC4000PP0FLA0750 | D6: 4 | E6: 84.53 | F6: 338.12 | G6: 202.872
A7: JC4000LA0 | C7: JC4000PP1FLA0110 | D7: 2 | E7: 84.53 | F7: 169.06 | G7: 202.872
A8: JC4000LA0 | C8: JC4000PP1FLA0500 | D8: 7 | E8: 84.53 | F8: 591.71 | G8: 202.872
A9: JC4001LA0 | C9: JC4001PP1FLA0500 | D9: 8 | E9: 96.3 | F9: 770.4 | G9: 231.12
A10: JC4003LA0 | C10: JC4003PP0FLA0000 | D10: 12 | E10: 60.99 | F10: 731.88 | G10: 146.376
A11: JC4003LA0 | C11: JC4003PP0FLA0110 | D11: 8 | E11: 60.99 | F11: 487.92 | G11: 146.376
A12: JC4003LA0 | C12: JC4003PP1FLA0000 | D12: 56 | E12: 60.99 | F12: 3415.44 | G12: 146.376
A13: JC4004LA0 | C13: JC4004PP0FLA0500 | D13: 10 | E13: 78.11 | F13: 781.1 | G13: 187.464
A14: JC4004LA0 | C14: JC4004PP0FLA0750 | D14: 2 | E14: 78.11 | F14: 156.22 | G14: 187.464
A15: JC4006LA0 | C15: JC4006PP0FLA0500 | D15: 12 | E15: 84.53 | F15: 1014.36 | G15: 202.872
A16: JC4006LA0 | C16: JC4006PP1FLA0000 | D16: 12 | E16: 84.53 | F16: 1014.36 | G16: 202.872
A17: JC4013LA0 | C17: JC4013PP1FLA0604 | D17: 10 | E17: 70.62 | F17: 706.2 | G17: 169.488
A18: JC4016LA0 | C18: JC4016PP1FLA0604 | D18: 10 | E18: 68.48 | F18: 684.8 | G18: 164.352
A19: JC4022LA0 | C19: JC4022PP1FLA0000 | D19: 4 | E19: 78.11 | F19: 312.44 | G19: 187.464
A20: JC4022LA0 | C20: JC4022PP1FLA0858 | D20: 2 | E20: 78.11 | F20: 156.22 | G20: 187.464
A21: JC4023LA0 | C21: JC4023PP1FLA0000 | D21: 8 | E21: 78.11 | F21: 624.88 | G21: 187.464
A22: JC4027LA0 | C22: JC4027PP1FLA0601 | D22: 6 | E22: 78.11 | F22: 468.66 | G22: 187.464
A23: JC4030LB0 | C23: JC4030PP1FLB0000 | D23: 8 | E23: 84.53 | F23: 676.24 | G23: 202.872
A24: JC4030LB0 | C24: JC4030PP1FLB0110 | D24: 11 | E24: 84.53 | F24: 929.83 | G24: 202.872
A25: JC4030LB0 | C25: JC4030PP1FLB0201 | D25: 8 | E25: 84.53 | F25: 676.24 | G25: 202.872
A26: JC4041LD0 | C26: JC4041PP1FLD0000 | D26: 8 | E26: 66.34 | F26: 530.72 | G26: 159.216
A27: JC4041LD0 | C27: JC4041PP1FLD0110 | D27: 8 | E27: 66.34 | F27: 530.72 | G27: 159.216
A28: JC4044LD1 | C28: JC4044PP1FLD110A | D28: 2 | E28: 84.53 | F28: 169.06 | G28: 202.872
A29: JC4052LD1 | C29: JC4052PP1FLD110A | D29: 1 | E29: 74.9 | F29: 74.9 | G29: 179.76
A30: JC4055LE1 | C30: JC4055PP1FLE100A | D30: 25 | E30: 63.13 | F30: 1578.25 | G30: 151.512
A31: JC4055LE1 | C31: JC4055PP1FLE160A | D31: 12 | E31: 63.13 | F31: 757.56 | G31: 151.512
A32: JC4057LE1 | C32: JC4057PP1FLE100A | D32: 10 | E32: 63.13 | F32: 631.3 | G32: 151.512
A33: JC4057LE1 | C33: JC4057PP1FLE160A | D33: 10 | E33: 63.13 | F33: 631.3 | G33: 151.512
A34: JC4058LE1 | C34: JC4058PP1FLE100A | D34: 4 | E34: 68.48 | F34: 273.92 | G34: 164.352
A35: JC4064LN1 | C35: JC4064PP1FLN100A | D35: 6 | E35: 88.81 | F35: 532.86 | G35: 213.144
A36: JC4065LN1 | C36: JC4065PP1FLN100A | D36: 3 | E36: 96.3 | F36: 288.9 | G36: 231.12
A37: JC4070LF0 | C37: JC4070PP1FLF0650 | D37: 1 | E37: 78.11 | F37: 78.11 | G37: 187.464
A38: JC4072LF0 | C38: JC4072PP1FLF0650 | D38: 11 | E38: 74.9 | F38: 823.9 | G38: 179.76
A39: JC4074LC0 | C39: JC4074PP1FLC0000 | D39: 8 | E39: 82.39 | F39: 659.12 | G39: 197.736
A40: JC4074LC0 | C40: JC4074PP1FLC0110 | D40: 8 | E40: 82.39 | F40: 659.12 | G40: 197.736
A41: JC4074LC0 | C41: JC4074PP1FLC0201 | D41: 8 | E41: 82.39 | F41: 659.12 | G41: 197.736
A42: JC4074LC0 | C42: JC4074PP1FLC0604 | D42: 7 | E42: 82.39 | F42: 576.73 | G42: 197.736
A43: JC4075LC0 | C43: JC4075PP1FLC0201 | D43: 8 | E43: 83.46 | F43: 667.68 | G43: 200.304
A44: JC4075LC0 | C44: JC4075PP1FLC0500 | D44: 8 | E44: 83.46 | F44: 667.68 | G44: 200.304
A45: JC4077LC0 | C45: JC4077PP1FLC0110 | D45: 8 | E45: 73.83 | F45: 590.64 | G45: 177.192
A46: JC4077LC0 | C46: JC4077PP1FLC0201 | D46: 8 | E46: 73.83 | F46: 590.64 | G46: 177.192
A47: JC4079LA0 | C47: JC4079PP1FLA0000 | D47: 522 | E47: 49.22 | F47: 25692.84 | G47: 118.128
A48: JC4079LA0 | C48: JC4079PP1FLA0107 | D48: 20 | E48: 49.22 | F48: 984.4 | G48: 118.128
A49: JC4081LZ0 | C49: JC4081PP1FLZ0000 | D49: 8 | E49: 73.83 | F49: 590.64 | G49: 177.192
A50: JC4082LZ0 | C50: JC4082PP1FLZ0110 | D50: 4 | E50: 82.39 | F50: 329.56 | G50: 197.736
A51: JC4082LZ0 | C51: JC4082PP1FLZ0650 | D51: 8 | E51: 82.39 | F51: 659.12 | G51: 197.736
A52: JC4084LZ0 | C52: JC4084PP1FLZ0000 | D52: 16 | E52: 88.81 | F52: 1420.96 | G52: 213.144
A53: JC4085LZ0 | C53: JC4085PP1FLZ0000 | D53: 4 | E53: 88.81 | F53: 355.24 | G53: 213.144
A54: JC4086LZ0 | C54: JC4086PP1FLZ0000 | D54: 6 | E54: 92.02 | F54: 552.12 | G54: 220.848
A55: JC4091LH1 | C55: JC4091PP1FLH100A | D55: 2 | E55: 89.88 | F55: 179.76 | G55: 215.712
A56: JC4094LH1 | C56: JC4094PP1FLH160A | D56: 16 | E56: 68.48 | F56: 1095.68 | G56: 164.352
A57: JC4095LL0 | C57: JC4095PP1FLL0000 | D57: 20 | E57: 57.78 | F57: 1155.6 | G57: 138.672
A58: JC4095LL0 | C58: JC4095PP1FLL0110 | D58: 20 | E58: 57.78 | F58: 1155.6 | G58: 138.672
A59: JC4095LL0 | C59: JC4095PP1FLL0500 | D59: 20 | E59: 57.78 | F59: 1155.6 | G59: 138.672
A60: JC4095LL0 | C60: JC4095PP1FLL0650 | D60: 20 | E60: 57.78 | F60: 1155.6 | G60: 138.672
A61: JC4096LM0 | C61: JC4096PP1FLM0601 | D61: 20 | E61: 57.78 | F61: 1155.6 | G61: 138.672
A62: JC4097LT0 | C62: JC4097PP0FLT0651 | D62: 20 | E62: 59.92 | F62: 1198.4 | G62: 143.808
A63: JC4097LT0 | C63: JC4097PP1FLT0500 | D63: 20 | E63: 59.92 | F63: 1198.4 | G63: 143.808
A64: JC4098LF0 | C64: JC4098PP0FLF0000 | D64: 20 | E64: 55.64 | F64: 1112.8 | G64: 133.536
A65: JC4098LF0 | C65: JC4098PP0FLF0201 | D65: 20 | E65: 55.64 | F65: 1112.8 | G65: 133.536
A66: JC4098LF0 | C66: JC4098PP0FLF0500 | D66: 20 | E66: 55.64 | F66: 1112.8 | G66: 133.536
A67: =CONCATENATE(LEFT(C67,6),MID(C67,11,3)) -> JC4098LF0 | C67: JC4098PP1FLF0201 | D67: 20 | E67: 55.64 | F67: =E67*D67 -> 1112.8 | G67: =E67*2.4 -> 133.536
A68: JC4099LJ0 | C68: JC4099PP0FLJ000A | D68: 10 | E68: 77.04 | F68: 770.4 | G68: 184.896
A69: JC4099LJ0 | C69: JC4099PP0FLJ010A | D69: 8 | E69: 77.04 | F69: 616.32 | G69: 184.896
A70: JC4099LJ0 | C70: JC4099PP1FLJ000A | D70: 16 | E70: 77.04 | F70: 1232.64 | G70: 184.896
A71: JC4099LJ0 | C71: JC4099PP1FLJ010A | D71: 8 | E71: 77.04 | F71: 616.32 | G71: 184.896
A72: JC4099LJ0 | C72: JC4099PP1FLJ020A | D72: 8 | E72: 77.04 | F72: 616.32 | G72: 184.896
A73: JC4100LJ0 | C73: JC4100PP1FLJ000A | D73: 9 | E73: 81.32 | F73: 731.88 | G73: 195.168
A74: JC4107LJ0 | C74: JC4107PP0FLJ020A | D74: 8 | E74: 66.34 | F74: 530.72 | G74: 159.216
A75: JC4107LJ0 | C75: JC4107PP0FLJ050A | D75: 8 | E75: 66.34 | F75: 530.72 | G75: 159.216
A76: JC4107LJ0 | C76: JC4107PP1FLJ000A | D76: 16 | E76: 66.34 | F76: 1061.44 | G76: 159.216
A77: JC4107LJ0 | C77: JC4107PP1FLJ020A | D77: 8 | E77: 66.34 | F77: 530.72 | G77: 159.216
A78: JC4107LJ0 | C78: JC4107PP1FLJ050A | D78: 8 | E78: 66.34 | F78: 530.72 | G78: 159.216
A79: JC4108LJ0 | C79: JC4108PP0FLJ000A | D79: 16 | E79: 68.48 | F79: 1095.68 | G79: 164.352
A80: JC4108LJ0 | C80: JC4108PP0FLJ020A | D80: 8 | E80: 68.48 | F80: 547.84 | G80: 164.352
A81: JC4109LJ0 | C81: JC4109PP1FLJ000A | D81: 12 | E81: 81.32 | F81: 975.84 | G81: 195.168
A82: JC4117LT0 | C82: JC4117PP1FLT0858 | D82: 8 | E82: 74.9 | F82: 599.2 | G82: 179.76
A83: JC4121LT0 | C83: JC4121PP1FLT0107 | D83: 8 | E83: 68.48 | F83: 547.84 | G83: 164.352
A84: JC4127LJ0 | C84: JC4127PP0FLJ050A | D84: 18 | E84: 51.36 | F84: 924.48 | G84: 123.264
A85: JC4127LJ0 | C85: JC4127PP1FLJ000A | D85: 32 | E85: 51.36 | F85: 1643.52 | G85: 123.264
A86: JC4127LJ0 | C86: JC4127PP1FLJ010A | D86: 16 | E86: 51.36 | F86: 821.76 | G86: 123.264
A87: JC4127LJ0 | C87: JC4127PP1FLJ050A | D87: 16 | E87: 51.36 | F87: 821.76 | G87: 123.264
A88: JC4135LA0 | C88: JC4135PP0FLA0000 | D88: 12 | E88: 73.83 | F88: 885.96 | G88: 177.192
A89: JC4135LA0 | C89: JC4135PP1FLA0000 | D89: 36 | E89: 73.83 | F89: 2657.88 | G89: 177.192
A90: JC4141LR0 | C90: JC4141PP1FLR0604 | D90: 8 | E90: 84.53 | F90: 676.24 | G90: 202.872
A91: JC4145LR0 | C91: JC4145PP1FLR0707 | D91: 8 | E91: 72.76 | F91: 582.08 | G91: 174.624
A92: JC4146LZ0 | C92: JC4146PP1FLZ0110 | D92: 8 | E92: 55.64 | F92: 445.12 | G92: 133.536
A93: JC4146LZ0 | C93: JC4146PP1FLZ0500 | D93: 8 | E93: 55.64 | F93: 445.12 | G93: 133.536
A94: JC4146LZ0 | C94: JC4146PP1FLZ0858 | D94: 8 | E94: 55.64 | F94: 445.12 | G94: 133.536
A95: JC4147LS0 | C95: JC4147PP0FLS000A | D95: 8 | E95: 68.48 | F95: 547.84 | G95: 164.352
A96: JC4147LS0 | C96: JC4147PP1FLS000A | D96: 8 | E96: 68.48 | F96: 547.84 | G96: 164.352
A97: JC4147LS0 | C97: JC4147PP1FLS050A | D97: 8 | E97: 68.48 | F97: 547.84 | G97: 164.352
A98: JC4165LW0 | C98: JC4165PP1FLW0000 | D98: 8 | E98: 72.76 | F98: 582.08 | G98: 174.624
A99: JC4165LW0 | C99: JC4165PP1FLW0601 | D99: 8 | E99: 72.76 | F99: 582.08 | G99: 174.624
A100: JC4166LW0 | C100: JC4166PP1FLW0000 | D100: 12 | E100: 72.76 | F100: 873.12 | G100: 174.624
A101: JC4166LW0 | C101: JC4166PP1FLW0601 | D101: 6 | E101: 72.76 | F101: 436.56 | G101: 174.624
A102: JC4167LW0 | C102: JC4167PP1FLW0001 | D102: 1 | E102: 57.78 | F102: 57.78 | G102: 138.672
A103: JC4167LW0 | C103: JC4167PP1FLW0601 | D103: 1 | E103: 57.78 | F103: 57.78 | G103: 138.672
A104: JC4168LW0 | C104: JC4168PP1FLW0000 | D104: 6 | E104: 55.64 | F104: 333.84 | G104: 133.536
A105: JC4168LW0 | C105: JC4168PP1FLW0001 | D105: 1 | E105: 55.64 | F105: 55.64 | G105: 133.536
A106: JC4168LW0 | C106: JC4168PP1FLW0601 | D106: 9 | E106: 55.64 | F106: 500.76 | G106: 133.536
A107: JC4170LC0 | C107: JC4170PP1FLC0110 | D107: 8 | E107: 63.13 | F107: 505.04 | G107: 151.512
A108: JC4170LC0 | C108: JC4170PP1FLC0201 | D108: 8 | E108: 63.13 | F108: 505.04 | G108: 151.512
A109: JC4170LC0 | C109: JC4170PP1FLC0500 | D109: 8 | E109: 63.13 | F109: 505.04 | G109: 151.512
A110: JC4194LK0 | C110: JC4194PP0FLK0500 | D110: 2 | E110: 81.32 | F110: 162.64 | G110: 195.168
A111: JC4195LK0 | C111: JC4195PP1FLK0500 | D111: 8 | E111: 66.34 | F111: 530.72 | G111: 159.216
A112: JC4197LK0 | C112: JC4197PP1FLK0201 | D112: 4 | E112: 88.81 | F112: 355.24 | G112: 213.144
A113: JC4197LK0 | C113: JC4197PP1FLK0500 | D113: 4 | E113: 88.81 | F113: 355.24 | G113: 213.144
A114: JC4198LK0 | C114: JC4198PP1FLK0201 | D114: 8 | E114: 70.62 | F114: 564.96 | G114: 169.488
A115: JC4198LK0 | C115: JC4198PP1FLK0500 | D115: 8 | E115: 70.62 | F115: 564.96 | G115: 169.488
A116: JC4198LK0 | C116: JC4198PP1FLK0902 | D116: 8 | E116: 70.62 | F116: 564.96 | G116: 169.488
A117: JC4199LK0 | C117: JC4199PP0FLK0500 | D117: 4 | E117: 77.04 | F117: 308.16 | G117: 184.896
A118: JC4199LK0 | C118: JC4199PP1FLK0000 | D118: 7 | E118: 77.04 | F118: 539.28 | G118: 184.896
A119: JC4199LK0 | C119: JC4199PP1FLK0201 | D119: 8 | E119: 77.04 | F119: 616.32 | G119: 184.896
A120: JC4200LF0 | C120: JC4200PP1FLF0500 | D120: 8 | E120: 84.53 | F120: 676.24 | G120: 202.872
A121: JC4200LF0 | C121: JC4200PP1FLF0858 | D121: 1 | E121: 84.53 | F121: 84.53 | G121: 202.872
A122: JC4201LP0 | C122: JC4201PP1FLP0000 | D122: 8 | E122: 89.88 | F122: 719.04 | G122: 215.712
A123: JC4201LP0 | C123: JC4201PP1FLP0107 | D123: 4 | E123: 89.88 | F123: 359.52 | G123: 215.712
A124: JC4202LK0 | C124: JC4202PP1FLK0000 | D124: 1 | E124: 63.13 | F124: 63.13 | G124: 151.512
A125: JC4202LK0 | C125: JC4202PP1FLK0500 | D125: 8 | E125: 63.13 | F125: 505.04 | G125: 151.512
A126: JC4311LA0 | C126: JC4311PP1FLA0000 | D126: 8 | E126: 83.46 | F126: 667.68 | G126: 200.304
A127: JC4311LA0 | C127: JC4311PP1FLA0500 | D127: 5 | E127: 83.46 | F127: 417.3 | G127: 200.304
A128: JC4312LA0 | C128: JC4312PP0FLA0000 | D128: 6 | E128: 73.83 | F128: 442.98 | G128: 177.192
A129: JC4312LA0 | C129: JC4312PP0FLA0120 | D129: 6 | E129: 73.83 | F129: 442.98 | G129: 177.192
A130: JC4312LA0 | C130: JC4312PP0FLA0500 | D130: 4 | E130: 73.83 | F130: 295.32 | G130: 177.192
A131: =CONCATENATE(LEFT(C131,6),MID(C131,11,3)) -> JC4312LA0 | C131: JC4312PP0FLA0750 | D131: 1 | E131: 73.83 | F131: =E131*D131 -> 73.83 | G131: =E131*2.4 -> 177.192
A132: JC4312LA0 | C132: JC4312PP0FLA0850 | D132: 1 | E132: 73.83 | F132: 73.83 | G132: 177.192
A133: JC4313LA0 | C133: JC4313PP0FLA0209 | D133: 2 | E133: 55.64 | F133: 111.28 | G133: 133.536
A134: JC4313LA0 | C134: JC4313PP0FLA0500 | D134: 6 | E134: 55.64 | F134: 333.84 | G134: 133.536
A135: JC4313LA0 | C135: JC4313PP0FLA0651 | D135: 10 | E135: 55.64 | F135: 556.4 | G135: 133.536
A136: JC4313LA0 | C136: JC4313PP0FLA0850 | D136: 2 | E136: 55.64 | F136: 111.28 | G136: 133.536
A137: JC4314LA0 | C137: JC4314PP0FLA0120 | D137: 12 | E137: 84.53 | F137: 1014.36 | G137: 202.872
A138: JC4314LA0 | C138: JC4314PP0FLA0209 | D138: 6 | E138: 84.53 | F138: 507.18 | G138: 202.872
A139: JC4314LA0 | C139: JC4314PP0FLA0750 | D139: 3 | E139: 84.53 | F139: 253.59 | G139: 202.872
A140: JC4315LA0 | C140: JC4315PP1FLA0650 | D140: 3 | E140: 88.81 | F140: 266.43 | G140: 213.144
A141: JC4316LA0 | C141: JC4316PP0FLA0209 | D141: 3 | E141: 63.13 | F141: 189.39 | G141: 151.512
A142: JC4316LA0 | C142: JC4316PP0FLA0500 | D142: 10 | E142: 63.13 | F142: 631.3 | G142: 151.512
A143: JC4316LA0 | C143: JC4316PP0FLA0750 | D143: 2 | E143: 63.13 | F143: 126.26 | G143: 151.512
A144: JC4318LA0 | C144: JC4318PP0FLA0120 | D144: 1 | E144: 70.62 | F144: 70.62 | G144: 169.488
A145: JC4319LA0 | C145: JC4319PP0FLA0500 | D145: 10 | E145: 66.34 | F145: 663.4 | G145: 159.216
A146: JC4320LA0 | C146: JC4320PP0FLA0209 | D146: 11 | E146: 84.53 | F146: 929.83 | G146: 202.872
A147: JC4320LA0 | C147: JC4320PP0FLA0500 | D147: 8 | E147: 84.53 | F147: 676.24 | G147: 202.872
A148: JC4322LA0 | C148: JC4322PP0FLA0000 | D148: 10 | E148: 73.83 | F148: 738.3 | G148: 177.192
A149: JC4322LA0 | C149: JC4322PP0FLA0120 | D149: 10 | E149: 73.83 | F149: 738.3 | G149: 177.192
A150: JC4322LA0 | C150: JC4322PP0FLA0209 | D150: 10 | E150: 73.83 | F150: 738.3 | G150: 177.192
A151: JC4322LA0 | C151: JC4322PP0FLA0500 | D151: 10 | E151: 73.83 | F151: 738.3 | G151: 177.192
A152: JC4322LA0 | C152: JC4322PP0FLA0602 | D152: 10 | E152: 73.83 | F152: 738.3 | G152: 177.192
A153: JC4322LA0 | C153: JC4322PP0FLA0651 | D153: 10 | E153: 73.83 | F153: 738.3 | G153: 177.192
A154: JC4322LA0 | C154: JC4322PP0FLA0750 | D154: 10 | E154: 73.83 | F154: 738.3 | G154: 177.192
A155: JC4322LA0 | C155: JC4322PP0FLA0850 | D155: 2 | E155: 73.83 | F155: 147.66 | G155: 177.192
A156: JC4323LA0 | C156: JC4323PP0FLA0000 | D156: 2 | E156: 89.88 | F156: 179.76 | G156: 215.712
A157: JC4324LA0 | C157: JC4324PP0FLA0209 | D157: 10 | E157: 58.85 | F157: 588.5 | G157: 141.24
A158: JC4324LA0 | C158: JC4324PP0FLA0500 | D158: 10 | E158: 58.85 | F158: 588.5 | G158: 141.24
A159: JC4324LA0 | C159: JC4324PP0FLA0602 | D159: 1 | E159: 58.85 | F159: 58.85 | G159: 141.24
A160: JC4324LA0 | C160: JC4324PP0FLA0651 | D160: 1 | E160: 58.85 | F160: 58.85 | G160: 141.24
A161: JC4324LA0 | C161: JC4324PP0FLA0750 | D161: 1 | E161: 58.85 | F161: 58.85 | G161: 141.24
A162: JC4325KB0 | C162: JC4325PP0FKB0000 | D162: 10 | E162: 73.83 | F162: 738.3 | G162: 177.192
A163: JC4325KB0 | C163: JC4325PP0FKB0651 | D163: 10 | E163: 73.83 | F163: 738.3 | G163: 177.192
A164: JC4326KB0 | C164: JC4326PP0FKB0000 | D164: 3 | E164: 89.88 | F164: 269.64 | G164: 215.712
A165: JC4326KB0 | C165: JC4326PP0FKB0500 | D165: 4 | E165: 89.88 | F165: 359.52 | G165: 215.712
A166: JC4327KB0 | C166: JC4327PP0FKB0000 | D166: 14 | E166: 70.62 | F166: 988.68 | G166: 169.488
A167: JC4327KB0 | C167: JC4327PP0FKB0120 | D167: 6 | E167: 70.62 | F167: 423.72 | G167: 169.488
A168: JC4327KB0 | C168: JC4327PP0FKB0651 | D168: 3 | E168: 70.62 | F168: 211.86 | G168: 169.488
A169: JC4328KB0 | C169: JC4328PP0FKB0000 | D169: 6 | E169: 73.83 | F169: 442.98 | G169: 177.192
A170: JC4328KB0 | C170: JC4328PP0FKB0500 | D170: 3 | E170: 73.83 | F170: 221.49 | G170: 177.192
A171: JC4329KB0 | C171: JC4329PP0FKB0000 | D171: 4 | E171: 77.04 | F171: 308.16 | G171: 184.896
A172: JC4329KB0 | C172: JC4329PP0FKB0120 | D172: 4 | E172: 77.04 | F172: 308.16 | G172: 184.896
A173: JC4329KB0 | C173: JC4329PP0FKB0500 | D173: 6 | E173: 77.04 | F173: 462.24 | G173: 184.896
A174: JC4330KB0 | C174: JC4330PP0FKB0120 | D174: 5 | E174: 66.34 | F174: 331.7 | G174: 159.216
A175: JC4330KB0 | C175: JC4330PP0FKB0651 | D175: 9 | E175: 66.34 | F175: 597.06 | G175: 159.216
A176: JC4330KB0 | C176: JC4330PP0FKB0850 | D176: 5 | E176: 66.34 | F176: 331.7 | G176: 159.216
A177: JC4331KB0 | C177: JC4331PP0FKB0500 | D177: 5 | E177: 84.53 | F177: 422.65 | G177: 202.872
A178: JC4332KC0 | C178: JC4332PP0FKC0000 | D178: 4 | E178: 84.53 | F178: 338.12 | G178: 202.872
A179: JC4332KC0 | C179: JC4332PP0FKC0500 | D179: 3 | E179: 84.53 | F179: 253.59 | G179: 202.872
A180: JC4334KC0 | C180: JC4334PP0FKC0000 | D180: 10 | E180: 74.9 | F180: 749 | G180: 179.76
A181: JC4334KC0 | C181: JC4334PP0FKC0500 | D181: 3 | E181: 74.9 | F181: 224.7 | G181: 179.76
A182: JC4337KC0 | C182: JC4337PP0FKC0601 | D182: 1 | E182: 78.11 | F182: 78.11 | G182: 187.464
A183: JC4342KD0 | C183: JC4342PP0FKD0000 | D183: 5 | E183: 78.11 | F183: 390.55 | G183: 187.464
A184: JC4342KD0 | C184: JC4342PP0FKD0850 | D184: 3 | E184: 78.11 | F184: 234.33 | G184: 187.464
A185: JC4344KD0 | C185: JC4344PP0FKD0601 | D185: 2 | E185: 72.76 | F185: 145.52 | G185: 174.624
A186: JC4352KE0 | C186: JC4352PP0FKE0000 | D186: 1 | E186: 78.11 | F186: 78.11 | G186: 187.464
A187: JC4352KE0 | C187: JC4352PP0FKE0750 | D187: 1 | E187: 78.11 | F187: 78.11 | G187: 187.464
A188: JC4355KF0 | C188: JC4355PP0FKF0000 | D188: 3 | E188: 83.46 | F188: 250.38 | G188: 200.304
A189: JC4358KG0 | C189: JC4358PP0FKG0601 | D189: 4 | E189: 66.34 | F189: 265.36 | G189: 159.216
A190: JC4359KG0 | C190: JC4359PP0FKG0209 | D190: 5 | E190: 102.72 | F190: 513.6 | G190: 246.528
A191: JC4361KG0 | C191: JC4361PP0FKG0000 | D191: 5 | E191: 84.53 | F191: 422.65 | G191: 202.872
A192: JC4364KG0 | C192: JC4364PP0FKG0601 | D192: 3 | E192: 78.11 | F192: 234.33 | G192: 187.464
A193: JC4367KH1 | C193: JC4367PP0FKH100A | D193: 11 | E193: 84.53 | F193: 929.83 | G193: 202.872
A194: JC4367KH1 | C194: JC4367PP0FKH112A | D194: 1 | E194: 84.53 | F194: 84.53 | G194: 202.872
A195: =CONCATENATE(LEFT(C195,6),MID(C195,11,3)) -> JC4368KH1 | C195: JC4368PP0FKH100A | D195: 2 | E195: 92.02 | F195: =E195*D195 -> 184.04 | G195: =E195*2.4 -> 220.848
A196: JC4373KI0 | C196: JC4373PP0FKI0000 | D196: 52 | E196: 89.88 | F196: 4673.76 | G196: 215.712
A197: JC4376KM1 | C197: JC4376PP0FKM131A | D197: 6 | E197: 84.53 | F197: 507.18 | G197: 202.872
A198: JC4377KM1 | C198: JC4377PP0FKM112A | D198: 4 | E198: 63.13 | F198: 252.52 | G198: 151.512
A199: JC4379KM1 | C199: JC4379PP0FKM131A | D199: 10 | E199: 78.11 | F199: 781.1 | G199: 187.464
A200: JC4383KN1 | C200: JC4383PP0FKN110A | D200: 8 | E200: 73.83 | F200: 590.64 | G200: 177.192
... 118 more rows

Sheet Foglio3 (hidden)
